fUST/lending_fUST_20250408
["ID","MTS","AMOUNT","RATE_DAILY","PERIOD"]
[357482796,1744081843197,-866.78,0.00022191,2]
[357482797,1744081843207,-500.0,0.00022191,2]
[357482798,1744081843217,-500.0,0.00022191,2]
[357482799,1744081843227,-500.0,0.00022191,2]
[357482800,1744081843236,-549.29015315,0.00022191,2]
[357482801,1744081843246,-500.0,0.00022191,2]
[357482802,1744081843256,-884.67,0.00022191,2]
[357482803,1744081843266,-500.0,0.00022191,2]
[357482804,1744081843276,-500.0,0.00022191,2]
[357482805,1744081843287,-1740.48,0.00022191,2]
[357482806,1744081843299,-500.0,0.00022191,2]
[357482807,1744081843309,-500.0,0.00022191,2]
[357482808,1744081843319,-536.56,0.00022191,2]
[357482810,1744081843329,-500.0,0.00022191,2]
[357482811,1744081843340,-969.19,0.00022191,2]
[357482812,1744081843351,-500.0,0.00022191,2]
[357482813,1744081843360,-500.0,0.00022191,2]
[357482814,1744081843371,-1688.58,0.00022191,2]
[357482815,1744081843382,-954.3,0.00022191,2]
[357482816,1744081843392,-500.0,0.00022191,2]
[357482817,1744081843402,-1338.67,0.00022191,2]
[357482819,1744081843412,-500.0,0.00022191,2]
[357482820,1744081843422,-500.0,0.00022191,2]
[357482821,1744081843432,-500.0,0.00022191,2]
[357482822,1744081843442,-500.0,0.00022191,2]
[357482823,1744081843452,-500.0,0.00022191,2]
[357482824,1744081843462,-6846.45,0.00022191,2]
[357482825,1744081843472,-500.0,0.00022191,2]
[357482826,1744081843482,-500.0,0.00022191,2]
[357482827,1744081843492,-653.14,0.00022191,2]
[357482828,1744081843502,-543.50973022,0.00022191,2]
[357482829,1744081843512,-500.0,0.00022191,2]
[357482830,1744081843522,-500.0,0.00022191,2]
[357482831,1744081843534,-500.0,0.00022191,2]
[357482832,1744081843544,-500.0,0.00022191,2]
[357482833,1744081843555,-1391.18,0.00022191,2]
[357482834,1744081843565,-500.0,0.00022191,2]
[357482835,1744081843575,-1149.97,0.00022191,2]
[357482836,1744081843585,-500.0,0.00022191,2]
[357482837,1744081843598,-218.47765379,0.00022452,2]
[357482838,1744081843609,-500.0,0.00022465,2]
[357482839,1744081843619,-500.0,0.00022465,2]
[357482840,1744081843629,-331.93918513,0.00022465,2]
[357482841,1744081843641,-503.39729275,0.00022465,2]
[357482842,1744081843651,-500.0,0.00022465,2]
[357482843,1744081843663,-500.0,0.00022465,2]
[357482844,1744081843674,-500.0,0.00022465,2]
[357482845,1744081843687,-500.0,0.00022465,2]
[357482846,1744081843698,-500.0,0.00022465,2]
[357482847,1744081843709,-500.0,0.00022465,2]
[357482848,1744081843719,-500.0,0.00022465,2]
[357482849,1744081843729,-156.80660021,0.00022465,2]
[357482850,1744081843739,-500.0,0.00022465,2]
[357482851,1744081843749,-500.0,0.00022465,2]
[357482852,1744081843760,-500.0,0.00022465,2]
[357482853,1744081843769,-500.0,0.00022465,2]
[357482854,1744081843779,-500.0,0.00022465,2]
[357482855,1744081843789,-500.0,0.00022465,2]
[357482856,1744081843799,-2803.81,0.00022465,2]
[357482857,1744081843808,-251.89398279,0.00022465,2]
[357482858,1744081843818,-500.0,0.00022465,2]
[357482859,1744081843828,-500.0,0.00022465,2]
[357482860,1744081843837,-500.0,0.00022465,2]
[357482861,1744081843849,-168.23216722,0.00022465,2]
[357482862,1744081843858,-500.0,0.00022465,2]
[357482863,1744081843868,-500.0,0.00022465,2]
[357482864,1744081843877,-500.0,0.00022465,2]
[357482865,1744081843887,-500.0,0.00022465,2]
[357482866,1744081843896,-500.0,0.00022465,2]
[357482867,1744081843906,-500.0,0.00022465,2]
[357482868,1744081843915,-500.0,0.00022465,2]
[357482869,1744081843925,-500.0,0.00022465,2]
[357482870,1744081843934,-500.0,0.00022465,2]
[357482871,1744081843944,-500.0,0.00022465,2]
[357482872,1744081843955,-500.0,0.00022465,2]
[357482873,1744081843965,-500.0,0.00022465,2]
[357482874,1744081843974,-500.0,0.00022465,2]
[357482875,1744081843984,-500.0,0.00022465,2]
[357482876,1744081843996,-500.0,0.00022465,2]
[357482877,1744081844006,-500.0,0.00022465,2]
[357482878,1744081844016,-500.0,0.00022465,2]
[357482879,1744081844026,-968.81,0.00022465,2]
[357482880,1744081844036,-500.47,0.00022465,2]
[357482881,1744081844047,-310.50306711,0.00022465,2]
[357482883,1744081844056,-296.45367776,0.00022465,2]
[357482885,1744081844065,-500.0,0.00022465,2]
[357482886,1744081844075,-500.0,0.00022465,2]
[357482887,1744081844084,-500.0,0.00022465,2]
[357482889,1744081844095,-809.84,0.00022465,2]
[357482891,1744081844104,-500.0,0.00022465,2]
[357482893,1744081844114,-764.08,0.00022465,2]
[357482895,1744081844123,-500.0,0.00022465,2]
[357482897,1744081844133,-500.0,0.00022465,2]
[357482899,1744081844143,-500.0,0.00022465,2]
[357482901,1744081844152,-500.0,0.00022465,2]
[357482903,1744081844162,-500.0,0.00022465,2]
[357482905,1744081844171,-500.0,0.00022465,2]
[357482907,1744081844181,-500.0,0.00022465,2]
[357482909,1744081844191,-500.0,0.00022465,2]
[357482911,1744081844201,-518.27311909,0.00022465,2]
[357482913,1744081844211,-511.46,0.00022465,2]
[357482915,1744081844221,-500.0,0.00022465,2]
[357482917,1744081844230,-500.0,0.00022465,2]
[357482919,1744081844240,-550.16,0.00022465,2]
[357482921,1744081844249,-921.48,0.00022465,2]
[357482923,1744081844258,-500.0,0.00022465,2]
[357482925,1744081844268,-500.0,0.00022465,2]
[357482927,1744081844278,-930.44,0.00022465,2]
[357482929,1744081844287,-647.67,0.00022465,2]
[357482931,1744081844297,-500.0,0.00022465,2]
[357482932,1744081844309,-500.0,0.00022465,2]
[357482934,1744081844318,-500.0,0.00022465,2]
[357482936,1744081844328,-500.0,0.00022465,2]
[357482938,1744081844338,-500.0,0.00022465,2]
[357482940,1744081844349,-158.59495579,0.00022465,2]
[357482942,1744081844358,-500.0,0.00022465,2]
[357482944,1744081844367,-500.0,0.00022465,2]
[357482946,1744081844383,-500.0,0.00022465,2]
[357482948,1744081844392,-556.88,0.00022465,2]
[357482950,1744081844402,-500.0,0.00022465,2]
[357482952,1744081844412,-500.0,0.00022465,2]
[357482954,1744081844421,-500.0,0.00022465,2]
[357482956,1744081844431,-819.25,0.00022465,2]
[357482958,1744081844440,-500.0,0.00022465,2]
[357482960,1744081844457,-500.0,0.00022465,2]
[357482962,1744081844468,-500.0,0.00022465,2]
[357482964,1744081844477,-500.0,0.00022465,2]
[357482966,1744081844487,-500.0,0.00022465,2]
[357482968,1744081844497,-500.0,0.00022465,2]
[357482970,1744081844507,-789.79,0.00022465,2]
[357482972,1744081844516,-1688.2,0.00022465,2]
[357482974,1744081844526,-500.0,0.00022465,2]
[357482976,1744081844536,-500.0,0.00022465,2]
[357482978,1744081844548,-500.0,0.00022465,2]
[357482980,1744081844558,-1342.25,0.00022465,2]
[357482982,1744081844568,-500.0,0.00022465,2]
[357482984,1744081844577,-500.0,0.00022465,2]
[357482986,1744081844587,-500.0,0.00022465,2]
[357482988,1744081844596,-500.0,0.00022465,2]
[357482990,1744081844606,-500.0,0.00022465,2]
[357482991,1744081844616,-958.86,0.00022465,2]
[357482993,1744081844625,-1653.17,0.00022465,2]
[357482995,1744081844634,-500.0,0.00022465,2]
[357482997,1744081844644,-500.0,0.00022465,2]
[357482999,1744081844654,-2115.74,0.00022465,2]
[357483001,1744081844663,-1255.28,0.00022465,2]
[357483003,1744081844673,-912.84,0.00022465,2]
[357483005,1744081844682,-500.0,0.00022465,2]
[357483007,1744081844692,-500.0,0.00022465,2]
[357483009,1744081844702,-500.0,0.00022465,2]
[357483011,1744081844713,-500.0,0.00022465,2]
[357483013,1744081844725,-515.31,0.00022465,2]
[357483015,1744081844734,-500.0,0.00022465,2]
[357483017,1744081844744,-828.11,0.00022465,2]
[357483019,1744081844754,-500.0,0.00022465,2]
[357483021,1744081844763,-522.7,0.00022465,2]
[357483023,1744081844773,-665.53,0.00022465,2]
[357483025,1744081844782,-500.0,0.00022465,2]
[357483027,1744081844792,-500.0,0.00022465,2]
[357483029,1744081844802,-500.0,0.00022465,2]
[357483031,1744081844811,-500.0,0.00022465,2]
[357483033,1744081844821,-592.81,0.00022465,2]
[357483035,1744081844830,-1007.96,0.00022465,2]
[357483037,1744081844840,-500.0,0.00022465,2]
[357483039,1744081844850,-1513.92,0.00022465,2]
[357483041,1744081844860,-500.0,0.00022465,2]
[357483042,1744081844869,-500.0,0.00022465,2]
[357483044,1744081844878,-1267.41,0.00022465,2]
[357483045,1744081844887,-500.0,0.00022465,2]
[357483047,1744081844896,-1030.35,0.00022465,2]
[357483049,1744081844906,-500.0,0.00022465,2]
[357483051,1744081844916,-500.0,0.00022465,2]
[357483053,1744081844927,-500.0,0.00022465,2]
[357483055,1744081844937,-500.0,0.00022465,2]
[357483057,1744081844947,-500.0,0.00022465,2]
[357483059,1744081844956,-4108.07,0.00022465,2]
[357483061,1744081844965,-500.0,0.00022465,2]
[357483063,1744081844977,-500.0,0.00022465,2]
[357483065,1744081844987,-500.0,0.00022465,2]
[357483067,1744081844997,-1082.33,0.00022465,2]
[357483069,1744081845007,-500.0,0.00022465,2]
[357483070,1744081845017,-500.0,0.00022465,2]
[357483072,1744081845027,-543.95,0.00022465,2]
[357483074,1744081845037,-500.0,0.00022465,2]
[357483076,1744081845048,-500.0,0.00022465,2]
[357483078,1744081845059,-500.0,0.00022465,2]
[357483080,1744081845070,-1330.51,0.00022465,2]
[357483082,1744081845087,-500.0,0.00022465,2]
[357483084,1744081845098,-500.0,0.00022465,2]
[357483086,1744081845108,-1439.3,0.00022465,2]
[357483088,1744081845118,-500.0,0.00022465,2]
[357483090,1744081845128,-961.73,0.00022465,2]
[357483092,1744081845138,-836.08,0.00022465,2]
[357483094,1744081845148,-1141.15,0.00022465,2]
[357483096,1744081845158,-1514.49,0.00022465,2]
[357483098,1744081845168,-792.22,0.00022465,2]
[357483100,1744081845179,-2372.07,0.00022465,2]
[357483102,1744081845189,-500.0,0.00022465,2]
[357483104,1744081845199,-500.0,0.00022465,2]
[357483106,1744081845210,-500.0,0.00022465,2]
[357483108,1744081845221,-910.81,0.00022465,2]
[357483109,1744081845230,-500.0,0.00022465,2]
[357483111,1744081845240,-500.0,0.00022465,2]
[357483113,1744081845250,-1896.06,0.00022465,2]
[357483115,1744081845259,-1257.28,0.00022465,2]
[357483117,1744081845269,-866.78,0.00022465,2]
[357483119,1744081845279,-500.0,0.00022465,2]
[357483121,1744081845288,-500.0,0.00022465,2]
[357483123,1744081845300,-500.0,0.00022465,2]
[357483125,1744081845312,-500.0,0.00022465,2]
[357483127,1744081845322,-884.67,0.00022465,2]
[357483129,1744081845332,-500.0,0.00022465,2]
[357483131,1744081845342,-500.0,0.00022465,2]
[357483133,1744081845352,-1740.48,0.00022465,2]
[357483135,1744081845361,-500.0,0.00022465,2]
[357483137,1744081845371,-500.0,0.00022465,2]
[357483139,1744081845381,-500.0,0.00022465,2]
[357483141,1744081845390,-536.56,0.00022465,2]
[357483143,1744081845401,-969.19,0.00022465,2]
[357483144,1744081845410,-500.0,0.00022465,2]
[357483146,1744081845419,-503.47069159,0.00022465,2]
[357483148,1744081845429,-1688.58,0.00022465,2]
[357483150,1744081845438,-954.3,0.00022465,2]
[357483152,1744081845447,-500.0,0.00022465,2]
[357483154,1744081845457,-1338.67,0.00022465,2]
[357483155,1744081845467,-500.0,0.00022465,2]
[357483156,1744081845477,-500.0,0.00022465,2]
[357483157,1744081845487,-500.0,0.00022465,2]
[357483158,1744081845496,-500.0,0.00022465,2]
[357483159,1744081845506,-500.0,0.00022465,2]
[357483160,1744081845516,-6846.45,0.00022465,2]
[357483161,1744081845526,-500.0,0.00022465,2]
[357483162,1744081845536,-500.0,0.00022465,2]
[357483163,1744081845546,-653.14,0.00022465,2]
[357483164,1744081845555,-500.0,0.00022465,2]
[357483165,1744081845565,-500.0,0.00022465,2]
[357483166,1744081845574,-500.0,0.00022465,2]
[357483167,1744081845584,-500.0,0.00022465,2]
[357483168,1744081845593,-1391.18,0.00022465,2]
[357483169,1744081845603,-500.0,0.00022465,2]
[357483170,1744081845613,-1149.97,0.00022465,2]
[357483171,1744081845623,-500.0,0.00022465,2]
[357483172,1744081845633,-224.84517403,0.00022536,2]
[357483173,1744081845643,-500.0,0.00022536,2]
[357483174,1744081845653,-156.16501903,0.00022536,2]
[357483175,1744081845667,-500.0,0.00022536,2]
[357483176,1744081845682,-500.0,0.00022576,2]
[357483177,1744081845694,-501.15278312,0.00022576,2]
[357483178,1744081845705,-151.0,0.000227,7]
[357483179,1744081845715,-500.0,0.00022717,2]
[357483180,1744081845725,-500.0,0.00022717,2]
[357483181,1744081845735,-500.0,0.00022717,2]
[357483182,1744081845745,-636.93786963,0.00022739,2]
[357483183,1744081845755,-500.0,0.00022739,2]
[357483184,1744081845766,-500.0,0.00022739,2]
[357483185,1744081845776,-500.0,0.00022739,2]
[357483186,1744081845786,-500.0,0.00022739,2]
[357483187,1744081845796,-363.66530971,0.00022739,2]
[357483188,1744081845806,-500.0,0.00022739,2]
[357483189,1744081845817,-500.0,0.00022739,2]
[357483190,1744081845827,-512.91102725,0.00022739,2]
[357483191,1744081845837,-500.0,0.00022739,2]
[357483192,1744081845847,-500.0,0.00022739,2]
[357483193,1744081845857,-500.0,0.00022739,2]
[357483194,1744081845866,-500.0,0.00022739,2]
[357483195,1744081845876,-500.0,0.00022739,2]
[357483196,1744081845887,-500.0,0.00022739,2]
[357483197,1744081845897,-2803.81,0.00022739,2]
[357483198,1744081845907,-500.0,0.00022739,2]
[357483199,1744081845917,-500.0,0.00022739,2]
[357483200,1744081845927,-500.0,0.00022739,2]
[357483201,1744081845937,-500.0,0.00022739,2]
[357483202,1744081845946,-500.0,0.00022739,2]
[357483203,1744081845957,-500.0,0.00022739,2]
[357483204,1744081845967,-500.0,0.00022739,2]
[357483205,1744081845976,-500.0,0.00022739,2]
[357483206,1744081845986,-500.0,0.00022739,2]
[357483207,1744081845996,-500.0,0.00022739,2]
[357483208,1744081846006,-500.0,0.00022739,2]
[357483209,1744081846015,-500.0,0.00022739,2]
[357483210,1744081846025,-171.15245186,0.00022739,2]
[357483211,1744081846035,-555.41126435,0.00022739,2]
[357483212,1744081846045,-500.0,0.00022739,2]
[357483213,1744081846056,-500.0,0.00022739,2]
[357483214,1744081846068,-500.0,0.00022739,2]
[357483215,1744081846078,-500.0,0.00022739,2]
[357483216,1744081846087,-968.81,0.00022739,2]
[357483217,1744081846096,-500.47,0.00022739,2]
[357483218,1744081846106,-500.0,0.00022739,2]
[357483219,1744081846115,-500.0,0.00022739,2]
[357483220,1744081846125,-500.0,0.00022739,2]
[357483221,1744081846134,-809.84,0.00022739,2]
[357483222,1744081846143,-764.08,0.00022739,2]
[357483223,1744081846153,-500.0,0.00022739,2]
[357483224,1744081846162,-599.06208993,0.00022739,2]
[357483225,1744081846172,-241.15591729,0.00022739,2]
[357483226,1744081846182,-500.0,0.00022739,2]
[357483227,1744081846191,-500.0,0.00022739,2]
[357483228,1744081846201,-511.46,0.00022739,2]
[357483229,1744081846211,-500.0,0.00022739,2]
[357483230,1744081846220,-500.0,0.00022739,2]
[357483231,1744081846230,-550.16,0.00022739,2]
[357483232,1744081846239,-921.48,0.00022739,2]
[357483233,1744081846249,-500.0,0.00022739,2]
[357483234,1744081846259,-500.0,0.00022739,2]
[357483235,1744081846268,-930.44,0.00022739,2]
[357483236,1744081846278,-647.67,0.00022739,2]
[357483237,1744081846288,-500.0,0.00022739,2]
[357483238,1744081846301,-500.0,0.00022739,2]
[357483239,1744081846311,-500.0,0.00022739,2]
[357483240,1744081846320,-500.0,0.00022739,2]
[357483241,1744081846330,-500.0,0.00022739,2]
[357483242,1744081846340,-500.0,0.00022739,2]
[357483243,1744081846351,-500.0,0.00022739,2]
[357483244,1744081846362,-556.88,0.00022739,2]
[357483245,1744081846371,-500.0,0.00022739,2]
[357483246,1744081846384,-463.79323441,0.00022739,2]
[357483247,1744081846393,-500.0,0.00022739,2]
[357483248,1744081846403,-819.25,0.00022739,2]
[357483249,1744081846412,-500.0,0.00022739,2]
[357483250,1744081846422,-500.0,0.00022739,2]
[357483251,1744081846432,-500.0,0.00022739,2]
[357483252,1744081846441,-500.0,0.00022739,2]
[357483253,1744081846451,-500.0,0.00022739,2]
[357483254,1744081846460,-500.0,0.00022739,2]
[357483255,1744081846471,-789.79,0.00022739,2]
[357483256,1744081846481,-1688.2,0.00022739,2]
[357483257,1744081846490,-500.0,0.00022739,2]
[357483258,1744081846500,-500.0,0.00022739,2]
[357483259,1744081846509,-1342.25,0.00022739,2]
[357483260,1744081846519,-500.0,0.00022739,2]
[357483261,1744081846529,-500.0,0.00022739,2]
[357483262,1744081846538,-500.0,0.00022739,2]
[357483263,1744081846548,-500.0,0.00022739,2]
[357483264,1744081846557,-958.86,0.00022739,2]
[357483265,1744081846567,-1653.17,0.00022739,2]
[357483266,1744081846577,-500.0,0.00022739,2]
[357483267,1744081846588,-500.0,0.00022739,2]
[357483268,1744081846597,-2115.74,0.00022739,2]
[357483269,1744081846607,-1255.28,0.00022739,2]
[357483270,1744081846617,-912.84,0.00022739,2]
[357483271,1744081846627,-500.0,0.00022739,2]
[357483272,1744081846636,-511.82705808,0.00022739,2]
[357483273,1744081846646,-515.31,0.00022739,2]
[357483274,1744081846656,-500.0,0.00022739,2]
[357483275,1744081846667,-828.11,0.00022739,2]
[357483276,1744081846676,-500.0,0.00022739,2]
[357483277,1744081846685,-522.7,0.00022739,2]
[357483278,1744081846695,-665.53,0.00022739,2]
[357483279,1744081846705,-500.0,0.00022739,2]
[357483280,1744081846715,-500.0,0.00022739,2]
[357483281,1744081846725,-500.0,0.00022739,2]
[357483282,1744081846735,-500.0,0.00022739,2]
[357483283,1744081846745,-592.81,0.00022739,2]
[357483284,1744081846754,-500.0,0.00022739,2]
[357483285,1744081846764,-1007.96,0.00022739,2]
[357483286,1744081846773,-1513.92,0.00022739,2]
[357483287,1744081846782,-500.0,0.00022739,2]
[357483288,1744081846946,-500.0,0.00022739,2]
[357483289,1744081846958,-1267.41,0.00022739,2]
[357483290,1744081846969,-500.0,0.00022739,2]
[357483291,1744081846979,-1030.35,0.00022739,2]
[357483292,1744081846988,-378.85477467,0.00022739,2]
[357483293,1744081846998,-500.0,0.00022739,2]
[357483294,1744081847008,-500.0,0.00022739,2]
[357483295,1744081847018,-500.0,0.00022739,2]
[357483296,1744081847028,-500.0,0.00022739,2]
[357483297,1744081847038,-4108.07,0.00022739,2]
[357483298,1744081847048,-500.0,0.00022739,2]
[357483299,1744081847057,-205.79063171,0.00022739,2]
[357483300,1744081847067,-500.0,0.00022739,2]
[357483301,1744081847077,-1082.33,0.00022739,2]
[357483302,1744081847087,-500.0,0.00022739,2]
[357483303,1744081847096,-500.0,0.00022739,2]
[357483304,1744081847107,-543.95,0.00022739,2]
[357483305,1744081847117,-500.0,0.00022739,2]
[357483306,1744081847126,-508.52054923,0.00022739,2]
[357483308,1744081847137,-500.0,0.00022739,2]
[357483309,1744081847146,-1330.51,0.00022739,2]
[357483310,1744081847155,-500.0,0.00022739,2]
[357483311,1744081847165,-349.81325299,0.00022739,2]
[357483312,1744081847175,-1439.3,0.00022739,2]
[357483313,1744081847185,-500.0,0.00022739,2]
[357483314,1744081847195,-961.73,0.00022739,2]
[357483315,1744081847204,-836.08,0.00022739,2]
[357483316,1744081847214,-1141.15,0.00022739,2]
[357483317,1744081847223,-1514.49,0.00022739,2]
[357483318,1744081847233,-792.22,0.00022739,2]
[357483319,1744081847243,-2372.07,0.00022739,2]
[357483320,1744081847254,-500.0,0.00022739,2]
[357483321,1744081847264,-500.0,0.00022739,2]
[357483322,1744081847274,-500.0,0.00022739,2]
[357483323,1744081847283,-910.81,0.00022739,2]
[357483324,1744081847294,-500.0,0.00022739,2]
[357483325,1744081847308,-500.0,0.00022739,2]
[357483326,1744081847318,-1896.06,0.00022739,2]
[357483327,1744081847328,-1257.28,0.00022739,2]
[357483328,1744081847339,-866.78,0.00022739,2]
[357483329,1744081847349,-500.0,0.00022739,2]
[357483330,1744081847359,-500.0,0.00022739,2]
[357483331,1744081847370,-500.0,0.00022739,2]
[357483332,1744081847380,-500.0,0.00022739,2]
[357483333,1744081847390,-884.67,0.00022739,2]
[357483334,1744081847400,-500.0,0.00022739,2]
[357483335,1744081847409,-500.0,0.00022739,2]
[357483336,1744081847421,-1740.48,0.00022739,2]
[357483337,1744081847431,-500.0,0.00022739,2]
[357483338,1744081847441,-500.0,0.00022739,2]
[357483339,1744081847451,-500.0,0.00022739,2]
[357483340,1744081847461,-536.56,0.00022739,2]
[357483341,1744081847471,-969.19,0.00022739,2]
[357483342,1744081847481,-500.0,0.00022739,2]
[357483343,1744081847491,-1688.58,0.00022739,2]
[357483344,1744081847501,-954.3,0.00022739,2]
[357483345,1744081847511,-1338.67,0.00022739,2]
[357483346,1744081847521,-500.0,0.00022739,2]
[357483347,1744081847530,-500.0,0.00022739,2]
[357483348,1744081847540,-500.0,0.00022739,2]
[357483349,1744081847549,-500.0,0.00022739,2]
[357483350,1744081847559,-500.0,0.00022739,2]
[357483351,1744081847569,-6846.45,0.00022739,2]
[357483352,1744081847579,-500.0,0.00022739,2]
[357483353,1744081847589,-500.0,0.00022739,2]
[357483354,1744081847598,-653.14,0.00022739,2]
[357483355,1744081847608,-500.0,0.00022739,2]
[357483356,1744081847618,-500.0,0.00022739,2]
[357483357,1744081847628,-500.0,0.00022739,2]
[357483358,1744081847637,-1391.18,0.00022739,2]
[357483359,1744081847647,-500.0,0.00022739,2]
[357483360,1744081847657,-1149.97,0.00022739,2]
[357483361,1744081847667,-500.0,0.00022773,2]
[357483362,1744081847677,-500.0,0.00022773,2]
[357483363,1744081847686,-500.0,0.00022773,2]
[357483364,1744081847696,-500.0,0.00022773,2]
[357483365,1744081847705,-500.0,0.00022773,2]
[357483366,1744081847716,-500.0,0.00022773,2]
[357483367,1744081847725,-500.0,0.00022773,2]
[357483368,1744081847735,-207.4,0.00022773,2]
[357483369,1744081847745,-12676.64186949,0.00022783,2]
[357483370,1744081847755,-21523.56906845,0.00022783,2]
[357483371,1744081847764,-151.0,0.000228,10]
[357483372,1744081847774,-178.9,0.000228,10]
[357483373,1744081847784,-218.47765379,0.00022819,2]
[357483374,1744081847794,-5553.03145314,0.00023,4]
[357483375,1744081847803,-202.89924348,0.00023,2]
[357483376,1744081847813,-500.0,0.00023013,2]
[357483377,1744081847823,-500.0,0.00023013,2]
[357483378,1744081847833,-500.0,0.00023013,2]
[357483379,1744081847842,-500.0,0.00023013,2]
[357483380,1744081847852,-500.0,0.00023013,2]
[357483381,1744081847862,-500.0,0.00023013,2]
[357483382,1744081847871,-500.0,0.00023013,2]
[357483383,1744081847881,-500.0,0.00023013,2]
[357483384,1744081847890,-500.0,0.00023013,2]
[357483385,1744081847899,-500.0,0.00023013,2]
[357483386,1744081847908,-500.0,0.00023013,2]
[357483387,1744081847918,-2803.81,0.00023013,2]
[357483388,1744081847927,-500.0,0.00023013,2]
[357483389,1744081847936,-500.0,0.00023013,2]
[357483390,1744081847945,-500.0,0.00023013,2]
[357483391,1744081847955,-157.91640295,0.00023013,2]
[357483392,1744081847966,-500.0,0.00023013,2]
[357483393,1744081847975,-500.0,0.00023013,2]
[357483394,1744081847985,-171.320962,0.00023013,2]
[357483395,1744081847994,-500.0,0.00023013,2]
[357483396,1744081848005,-500.0,0.00023013,2]
[357483397,1744081848015,-500.0,0.00023013,2]
[357483398,1744081848024,-500.0,0.00023013,2]
[357483399,1744081848034,-500.0,0.00023013,2]
[357483400,1744081848044,-500.0,0.00023013,2]
[357483401,1744081848054,-500.0,0.00023013,2]
[357483402,1744081848064,-968.81,0.00023013,2]
[357483403,1744081848074,-500.47,0.00023013,2]
[357483404,1744081848084,-500.0,0.00023013,2]
[357483405,1744081848094,-500.0,0.00023013,2]
[357483406,1744081848105,-500.0,0.00023013,2]
[357483407,1744081848114,-809.84,0.00023013,2]
[357483408,1744081848124,-764.08,0.00023013,2]
[357483409,1744081848134,-500.0,0.00023013,2]
[357483410,1744081848143,-500.0,0.00023013,2]
[357483411,1744081848154,-511.46,0.00023013,2]
[357483412,1744081848163,-500.0,0.00023013,2]
[357483413,1744081848173,-500.0,0.00023013,2]
[357483414,1744081848183,-550.16,0.00023013,2]
[357483415,1744081848192,-921.48,0.00023013,2]
[357483416,1744081848203,-500.0,0.00023013,2]
[357483417,1744081848212,-500.0,0.00023013,2]
[357483418,1744081848222,-930.44,0.00023013,2]
[357483419,1744081848231,-647.67,0.00023013,2]
[357483420,1744081848241,-500.0,0.00023013,2]
[357483421,1744081848251,-174.51510736,0.00023013,2]
[357483422,1744081848261,-500.0,0.00023013,2]
[357483423,1744081848270,-500.0,0.00023013,2]
[357483424,1744081848279,-533.95825635,0.00023013,2]
[357483425,1744081848289,-500.0,0.00023013,2]
[357483426,1744081848302,-500.0,0.00023013,2]
[357483427,1744081848311,-556.88,0.00023013,2]
[357483428,1744081848321,-500.0,0.00023013,2]
[357483429,1744081848331,-500.0,0.00023013,2]
[357483430,1744081848340,-819.25,0.00023013,2]